[Event "LEM Niedersachsen-A-Open 2025"]
[Site "Verden"]
[Date "2025.01.04"]
[Round "5.8"]
[White "Reimer, Philip"]
[Black "Lebiedz, Oliver"]
[Result "1/2-1/2"]
[ECO "B45"]
[WhiteElo "2131"]
[BlackElo "1939"]
[Annotator "TA"]
[PlyCount "126"]
[EventDate "2024.12.27"]
[EventType "swiss"]
[EventCountry "GER"]
[SourceTitle "playchess.com"]
[Source "ChessBase"]
[SourceQuality "1"]
[TimeControl "40/5400+30:1800+30"]

{[%evp 23,126,-4,0,-27,-7,0,0,-12,-19,-134,-129,-138,-52,-52,-52,-52,-48,-52,-46,-68,-29,-30,-29,-61,-54,-61,-57,-75,-71,-86,-87,-80,-88,-90,-87,-130,-130,-381,-137,-133,-136,-133,-133,-103,0,-406,-115,-169,-108,-246,-243,-219,32,-201,-212,-218,-107,-114,-125,-124,-114,-120,-113,-118,-114,-123,-98,-109,-114,-145,-129,-154,-151,-150,-139,-181,-160,-173,-173,-173,-173,-310,-318,-491,-445,-1613,-1566,-1929,-1568,-882,-114,-120,-120,-125,-70,-70,-36,-53,-28,-83,-12,-32,-33,-53,-8]} 1. e4 {[%emt 0:00:04]} c5 {[%emt 0:00:06]} 2. Nf3 {[%emt 0:00:08][%cal Bg1f3,Bf3d4,Bd4b5][%mdl 32]} e6 {[%emt 0:00:05]} 3. d4 {[%emt 0:00:04]} cxd4 {[%emt 0:00:05]} 4. Nxd4 {[%emt 0:00:05]} Nf6 {[%emt 0:00:09]} 5. Nc3 {[%emt 0:00:20]} Nc6 {[%emt 0:00:06]} 6. Ndb5 {[%emt 0:00:31]} Bb4 {[%emt 0:00:28]} 7. a3 {[%emt 0:00:07]} Bxc3+ {[%emt 0:07:51]} 8. Nxc3 {[%emt 0:00:08]} d5 {[%emt 0:02:50]} 9. exd5 {[%emt 0:00:07]} Nxd5 {[%emt 0:00:21]} 10. Nxd5 {[%emt 0:00:46]} exd5 {[%emt 0:00:30][%cal Be6d5,Bd5d4,Bd4d3][%mdl 32]} 11. Be2 {[%emt 0:07:37]} O-O {[%emt 0:00:59]} 12. O-O {[%emt 0:00:12]} Bf5 {[%emt 0:02:07]} 13. Bf4 {[%emt 0:20:06]} Rc8 {[%emt 0:02:48]} 14. Rc1 {[%emt 0:16:29]} Qf6 {[%emt 0:12:49]} 15. c3 {[%emt 0:08:39] The position is equal.} d4 {[%emt 0:11:51]} 16. Bg3 {[%emt 0:05:36] [#]} (16. cxd4 $11 Nxd4 17. Rxc8 Bxc8 18. Be3 Nxe2+ 19. Qxe2) 16... d3 $1 $17 {[%emt 0:05:06][%mdl 512]} 17. Bf3 {[%emt 0:00:27]} (17. Bxd3 $2 Rcd8 18. Qb3 Bxd3 $19) 17... Rfd8 {[%emt 0:03:32]} (17... Na5 $1 $17 {White must now prevent ...Nc4.} 18. Ra1 Qb6) 18. Bxc6 $1 $15 {[%emt 0:01:50]} Qxc6 {[%emt 0:10:53]} 19. Qd2 $1 {[%emt 0:00:59] White is weak on the light squares} Qa4 {[%emt 0:03:22]} 20. Bf4 {[%emt 0:04:38]} Qb3 {[%emt 0:02:54]} 21. c4 {[%emt 0:06:55]} b6 {[%emt 0:05:24]} (21... Rxc4 $2 22. Qa5 Rcd4 (22... Rdd4 23. Qxf5 g6 24. Qc8+ Rxc8 25. Rxc8+ Kg7 26. Be5+ f6 27. Bxd4 $18) 23. Qxf5 $18) 22. Rc3 {[%emt 0:00:51]} Qa4 {[%emt 0:00:06][%cal Od8e8]} 23. b4 {[%emt 0:01:13]} Rd4 {[%emt 0:03:03]} 24. Rfc1 {[%emt 0:01:40]} h6 {[%emt 0:07:34]} 25. Be3 {[%emt 0:00:53] [#]} Rg4 {[%emt 0:00:10]} 26. f3 {[%emt 0:04:09]} Rg6 {[%emt 0:00:02]} 27. c5 {[%emt 0:01:01]} bxc5 {[%emt 0:02:40]} 28. Rxc5 {[%emt 0:01:22]} Rxc5 {[%emt 0:00:54]} 29. bxc5 {[%emt 0:06:12]} Bh3 $1 {[%emt 0:05:09]} (29... Qxa3 30. c6 $11) 30. c6 $2 {[%emt 0:06:11][%mdl 8192]} (30. g3 $17) 30... Bxg2 $2 {[%emt 0:07:00]} (30... Qxa3 31. c7 Bc8 32. h4 $16) (30... Rxg2+ $19 31. Qxg2 Bxg2 32. Kxg2 d2 (32... Qxa3 $2 33. c7 $18) 33. Bxd2 Qd4 (33... Qxa3 $2 34. c7 $18)) 31. c7 $17 {[%emt 0:02:09]} Bh3+ {[%emt 0:00:15]} (31... Bxf3+ $6 32. Kf2 Qh4+ (32... Rg2+ 33. Ke1 $11) 33. Kxf3 Qg4+ 34. Kf2 Qg2+ 35. Ke1 Qh1+ 36. Kf2 Qg2+ (36... Qxh2+ $2 37. Kf3 $18) 37. Ke1 Qh1+ 38. Kf2 Rf6+ (38... Qxh2+ 39. Kf3 $18) 39. Kg3 (39. Bf4 $2 Qxh2+ 40. Kf3 Qxd2 $19) 39... Qf3+ 40. Kh4 g5+ (40... Qe4+ 41. Kh3 $11) 41. Bxg5 Qe4+ 42. Kh5 Qf3+ 43. Kh4 Qe4+ 44. Kh5 Qf3+ 45. Kh4 $11) 32. Kh1 {[%emt 0:00:14]} Qa6 {[%emt 0:01:10][%cal Oa6b7] Threatens to win with ...Qb7!} (32... Qxa3 33. c8=Q+ Bxc8 34. Rxc8+ Kh7 35. Rc3 Qa1+ 36. Rc1 $16) 33. Bf4 {[%emt 0:04:25]} Qb7 {[%emt 0:01:15]} (33... Qxa3 34. c8=R+ (34. c8=B $2 Bg2+ 35. Kg1 Bxf3+ 36. Bg3 Qd6 $19) (34. c8=Q+ Bxc8 35. Rxc8+ Kh7 $14) 34... Bxc8 35. Rxc8+ Kh7 36. Rc3 Qa1+ 37. Rc1 $14) (33... Kh7 $17 {[%cal Oa6b5] aiming for ...Qb5!} 34. Rc3 Bf5) 34. Qf2 $2 {[%emt 0:00:46][%mdl 8192]} (34. Qxd3 $11 {and White stays safe.} Bg2+ 35. Kg1 Qb6+ (35... Qxf3 $2 36. c8=Q+ Kh7 37. Qxf3 $18) 36. Qe3 Bh3+ 37. Kh1 Bg2+ 38. Kg1 Bh3+ 39. Kh1 Bg2+ 40. Kg1) 34... Bd7 $2 {[%emt 0:01:26]} (34... Rf6 $19 {is more deadly.} 35. Rc4 Kh7) 35. Bg3 {[%emt 0:00:30] [#]} (35. Rc3 $17) 35... Rc6 {[%emt 0:01:31]} ({Black should play} 35... h5 $1 $19 36. Rc3 Rc6 37. Rxc6 Qxc6) 36. Rd1 {[%emt 0:00:34]} (36. Rxc6 $17 {is the only way for White.} Qxc6 (36... Bxc6 37. Kg2 $15) 37. Bf4) 36... Rc2 $19 {[%emt 0:00:53]} 37. Qe3 {[%emt 0:00:01]} Bc6 $2 {[%emt 0:00:45]} ({Black should try} 37... Bf5 $19 {...Re2 would now be deadly.} 38. Qf4 Bh3) 38. c8=Q+ $2 {[%emt 0:00:57]} (38. Rxd3 $14 {keeps the upper hand.} Qa6 39. Rd8+ Kh7 40. Qd3+ (40. c8=B $2 {gets mated.} Qf1+ 41. Qg1 Bxf3#) (40. Kg1 Bb7 $14) 40... Qxd3 41. Rxd3) 38... Qxc8 {[%emt 0:00:09]} 39. Qxd3 {[%emt 0:00:03]} Bb7 {[%emt 0:01:06]} (39... Qg4 $1 $19 {has better winning chances.} 40. Kg1 Bxf3 (40... Qxf3 $2 41. Qxf3 Bxf3 42. Rd8+ Kh7 43. Rd7 $17) 41. Qxc2 Bxd1) 40. Qd8+ $17 {[%emt 0:00:24]} Qxd8 {[%emt 0:00:28]} 41. Rxd8+ {[%emt 0:30:05][%mdl 4096] Endgame. KRB-KRB} Kh7 {[%emt 0:30:07]} 42. Rd7 {[%emt 0:00:00]} Bxf3+ {[%emt 0:00:00]} 43. Kg1 {[%emt 0:00:00]} Kg6 {[%emt 0:00:00]} 44. Rxa7 {[%emt 0:00:00]} h5 {[%emt 0:00:00]} 45. Rc7 {[%emt 0:00:00]} Ra2 {[%emt 0:00:00]} 46. Rc3 {[%emt 0:00:00]} Bd5 {[%emt 0:00:00]} 47. Bd6 {[%emt 0:00:00]} Kf5 {[%emt 0:00:00]} 48. Kf1 {[%emt 0:00:00]} g5 {[%emt 0:00:00]} 49. Ke1 {[%emt 0:00:00]} Ke6 {[%emt 0:00:00]} 50. Bb8 {[%emt 0:00:00]} f5 {[%emt 0:00:00]} 51. Re3+ {[%emt 0:00:00]} Be4 {[%emt 0:00:00]} 52. Rb3 {[%emt 0:00:00]} (52. h4 $142) 52... f4 $19 {[%emt 0:00:00]} 53. h4 {[%emt 0:00:00]} (53. h3 {was necessary.}) 53... f3 {[%emt 0:00:00]} (53... gxh4 54. Bxf4 Bf5 55. Re3+ Kf7 56. Re2 Rxa3 57. Bb8 $19) 54. hxg5 {[%emt 0:00:00]} (54. Bg3 $142 Re2+ 55. Kf1) 54... h4 {[%emt 0:00:00] And now ...h3 would win.} 55. Rb6+ {[%emt 0:02:13]} Kf5 {[%emt 0:00:00] ( -> ...f2+)} 56. Rd6 {[%emt 0:00:28]} h3 $2 {[%emt 0:00:01]} ({Not} 56... Kxg5 57. Rd2 Rxa3 58. Kf2 $19) (56... Re2+ $19 57. Kf1 h3 (57... Kxg5 $2 58. Rd8 $19)) 57. Rd2 $17 {[%emt 0:01:47]} Rxa3 {[%emt 0:05:28]} 58. Kf2 {[%emt 0:00:45]} Kg4 {[%emt 0:01:07]} (58... Kxg5 $17 59. Kg3 Kg6) 59. g6 $1 $15 {[%emt 0:01:16]} Ra8 {[%emt 0:01:27]} 60. Bh2 {[%emt 0:00:59]} Rg8 {[%emt 0:00:38]} (60... Bxg6 $5 61. Rd4+ $8 Kg5 62. Kxf3 Ra3+ 63. Ke2 Bh5+ 64. Ke1 Bf7 $17) 61. Rd6 {[%emt 0:00:37]} (61. Rd1 $1 $11 {remains equal.}) 61... Ba8 {[%emt 0:00:49]} ({Of course not} 61... Bxg6 $6 62. Rd4+ Kh5 63. Kxf3 $11) ({Better is} 61... Rxg6 $17 62. Rxg6+ Bxg6) 62. Rd4+ {[%emt 0:00:35]} Kh5 {[%emt 0:00:38]} 63. Rd6 {[%emt 0:01:40]} Rxg6 {[%emt 0:00:55] Weighted Error Value: White=0.58/Black=0.45.  Loses game:     	White=3     	---        Missed win:     	---       	Black=3      Mistake:       	White=7     	Black=6      Inaccurate:     	White=3     	Black=3      OK:         	White=6     	Black=18     Best:        	White=5     	Black=4      Strong:       	White=3     	Black=1      Brilliant:      	---       	Black=1} 1/2-1/2

[Event "LEM Niedersachsen-A-Open 2025"]
[Site "Verden"]
[Date "2025.01.04"]
[Round "5.10"]
[White "Renner, Kai"]
[Black "Gottschalk, Siegfried"]
[Result "1/2-1/2"]
[ECO "C03"]
[WhiteElo "2080"]
[BlackElo "1936"]
[Annotator "NA RC"]
[PlyCount "61"]
[EventDate "2024.12.27"]
[EventType "swiss"]
[EventCountry "GER"]
[SourceTitle "playchess.com"]
[Source "ChessBase"]
[SourceQuality "1"]
[TimeControl "40/5400+30:1800+30"]

1. e4 {[%emt 0:00:03]} e6 {[%emt 0:00:23]} 2. d4 {[%emt 0:00:07]} d5 {[%emt 0:00:04]} 3. Nd2 {[%emt 0:00:11]} Be7 {[%emt 0:00:38]} 4. Ngf3 {[%emt 0:00:28]} Nf6 {[%emt 0:00:10]} 5. e5 {[%emt 0:00:07]} Nfd7 {[%emt 0:00:11]} 6. Bd3 {[%emt 0:00:16]} c5 {[%emt 0:00:43]} 7. c3 {[%emt 0:00:16] C03: French Tarrasch: Unusual Black 3rd moves.} b6 {[%emt 0:01:56]} 8. O-O {[%emt 0:00:14]} Ba6 {[%emt 0:01:52]} 9. Ne1 {[%emt 0:00:08]} Bxd3 {[%emt 0:02:12]} 10. Nxd3 {[%emt 0:00:06]} Nc6 {[%emt 0:00:46]} 11. Qg4 {[%emt 0:00:05]} g5 {[%emt 0:08:59]} 12. Qh5 {[%emt 0:11:41]} cxd4 {[%emt 1:18:36]} 13. Nf3 {[%emt 0:01:34]} h6 {[%emt 0:00:00]} 14. cxd4 {[%emt 0:06:49]} Nf8 $1 {[%emt 0:00:00]} 15. Nxg5 {[%emt 0:03:32]} Bxg5 {[%emt 0:00:00]} 16. f4 {[%emt 0:00:19]} Ng6 {[%emt 0:00:00]} 17. fxg5 {[%emt 0:00:51]} hxg5 {[%emt 0:00:00]} 18. Qxg5 {[%emt 0:13:15]} (18. Qd1 $16) 18... Nxd4 {[%emt 0:00:00]} 19. Qe3 {[%emt 0:18:09]} (19. Rf6 $11 {keeps the balance.}) 19... Qh4 {[%emt 0:00:00]} 20. h3 {[%emt 0:02:41]} Nf5 {[%emt 0:00:00]} (20... Qe4 $17 21. Rb1 Rh4 22. Qxe4 Rxe4 (22... dxe4 23. Nf2 $17)) 21. Qf2 {[%emt 0:04:28]} Rc8 {[%emt 0:00:00]} 22. Bf4 {[%emt 0:03:40]} Nxf4 {[%emt 0:00:00]} 23. Qxf4 {[%emt 0:00:36]} Qxf4 {[%emt 0:00:00]} 24. Rxf4 {[%emt 0:01:33]} Ke7 {[%emt 0:00:00]} 25. Rc1 {[%emt 0:01:41]} Rxc1+ {[%emt 0:00:00]} 26. Nxc1 {[%emt 0:00:27]} Rc8 {[%emt 0:00:00]} 27. Nd3 {[%emt 0:00:07]} Rc2 $11 {[%emt 0:00:00]} 28. Rf2 {[%emt 0:00:13]} Rc4 {[%emt 0:00:00]} 29. Rf4 {[%emt 0:04:56]} Rc2 {[%emt 0:00:00]} 30. Rf2 {[%emt 0:02:54]} Rc4 {[%emt 0:00:00]} 31. Rf4 {[%emt 0:02:44]} 1/2-1/2

[Event "LEM Niedersachsen-A-Open 2025"]
[Site "Verden"]
[Date "2025.01.04"]
[Round "5.11"]
[White "Ophardt, Paul"]
[Black "Freise, Linus"]
[Result "0-1"]
[ECO "A40"]
[WhiteElo "2015"]
[BlackElo "1723"]
[Annotator "RC"]
[PlyCount "96"]
[EventDate "2024.12.27"]
[EventType "swiss"]
[EventCountry "GER"]
[SourceTitle "playchess.com"]
[Source "ChessBase"]
[SourceQuality "1"]
[TimeControl "40/5400+30:1800+30"]

1. d4 {[%emt 0:00:08]} e6 {[%emt 0:00:37]} 2. c4 {[%emt 0:00:45]} b6 {[%emt 0:00:19]} 3. a3 {[%emt 0:02:37]} Bb7 {[%emt 0:04:15]} 4. Nc3 {[%emt 0:03:25]} f5 {[%emt 0:04:47]} 5. Bf4 {[%emt 0:05:22]} d6 {[%emt 0:06:06]} 6. e3 {[%emt 0:02:40]} Nf6 {[%emt 0:02:01]} 7. Nf3 {[%emt 0:02:43]} Be7 {[%emt 0:19:57]} 8. Bd3 {[%emt 0:06:22]} Nbd7 {[%emt 0:05:49]} 9. O-O {[%emt 0:01:53]} Bxf3 {[%emt 0:03:59]} 10. Qxf3 {[%emt 0:00:53]} e5 {[%emt 0:02:52]} 11. dxe5 {[%emt 0:04:37]} dxe5 {[%emt 0:00:31]} 12. Bxf5 {[%emt 0:01:11]} exf4 {[%emt 0:01:16]} 13. Be6 {[%emt 0:00:33]} Nc5 {[%emt 0:11:10]} 14. Qc6+ {[%emt 0:01:34]} Kf8 {[%emt 0:00:14]} 15. Bh3 {[%emt 0:04:28]} f3 {[%emt 0:02:31]} 16. Nb5 {[%emt 0:05:10]} Ne8 {[%emt 0:08:59]} 17. b4 {[%emt 0:04:15]} Na6 {[%emt 0:09:04]} 18. Nd4 {[%emt 0:00:36]} Qb8 {[%emt 0:03:24]} 19. Ne6+ {[%emt 0:04:56]} Kg8 {[%emt 0:01:20]} 20. Qd7 {[%emt 0:03:22]} Bf6 {[%emt 0:02:03]} 21. Nd8 {[%emt 0:01:07]} Nd6 {[%emt 0:01:05]} 22. Qe6+ {[%emt 0:06:12]} Kf8 {[%emt 0:00:06]} 23. Nc6 {[%emt 0:01:47]} Qe8 {[%emt 0:00:13]} 24. Qd5 {[%emt 0:00:51]} Qe4 {[%emt 0:02:39]} 25. Rad1 {[%emt 0:01:09]} Qxd5 {[%emt 0:01:11]} 26. cxd5 {[%emt 0:00:12]} Nb8 {[%emt 0:01:50]} 27. Nd4 {[%emt 0:01:16]} Bxd4 {[%emt 0:00:54]} 28. Rxd4 {[%emt 0:00:13]} Ke7 {[%emt 0:01:04]} 29. Rc1 {[%emt 0:01:27]} Na6 {[%emt 0:04:44]} 30. a4 {[%emt 0:01:39]} Rae8 {[%emt 0:00:00]} 31. gxf3 {[%emt 0:01:47]} Kd8 {[%emt 0:00:00]} 32. e4 {[%emt 0:00:30]} Rhf8 {[%emt 0:00:00]} 33. Kg2 {[%emt 0:00:18]} Rf4 {[%emt 0:00:00]} 34. a5 {[%emt 0:02:19]} Nb8 {[%emt 0:00:56]} 35. axb6 {[%emt 0:00:54]} axb6 {[%emt 0:00:04]} 36. Ra1 {[%emt 0:01:14]} Nd7 {[%emt 0:00:31]} 37. Rd3 {[%emt 0:02:49]} Ke7 {[%emt 0:00:59]} 38. b5 {[%emt 0:03:59]} Nc5 {[%emt 0:01:03]} 39. Re3 {[%emt 0:00:33]} Nc4 {[%emt 0:00:38]} 40. Rc3 {[%emt 0:00:40]} Ne5 {[%emt 0:00:39]} 41. Kg3 {[%emt 0:31:09]} g5 {[%emt 0:30:22]} 42. Bf5 {[%emt 0:00:39]} h5 {[%emt 0:00:00]} 43. Raa3 {[%emt 0:00:00]} Kd6 {[%emt 0:00:00]} 44. Ra2 {[%emt 0:00:00]} Ncd3 {[%emt 0:00:00]} 45. Kg2 {[%emt 0:00:00]} Rxf3 {[%emt 0:00:00]} 46. Rc6+ Nxc6 {[%emt 0:00:00]} 47. Kxf3 {[%emt 0:00:00]} Nd4+ {[%emt 0:00:00]} 48. Ke3 {[%emt 0:00:00]} Nb4 {[%emt 0:00:00]} 0-1

[Event "LEM Niedersachsen-A-Open 2025"]
[Site "Verden"]
[Date "2025.01.04"]
[Round "5.12"]
[White "Moeller, Tom"]
[Black "Amrhein, Thorsten"]
[Result "1-0"]
[ECO "D00"]
[WhiteElo "1802"]
[BlackElo "1979"]
[Annotator "NA RC"]
[PlyCount "63"]
[EventDate "2024.12.27"]
[EventType "swiss"]
[EventCountry "GER"]
[SourceTitle "playchess.com"]
[Source "ChessBase"]
[SourceQuality "1"]
[TimeControl "40/5400+30:1800+30"]

1. d4 {[%emt 0:00:02]} d5 {[%emt 0:00:10]} 2. Nc3 {[%emt 0:00:03]} Bf5 {[%emt 0:00:11]} 3. Bf4 {[%emt 0:00:07]} Nf6 {[%emt 0:00:52]} 4. e3 {[%emt 0:00:46]} c6 {[%emt 0:00:57]} 5. f3 {[%emt 0:02:00]} e6 {[%emt 0:00:55]} 6. g4 {[%emt 0:00:05] D00: 1 d4 d5: Unusual lines.} Bg6 {[%emt 0:00:08]} 7. h4 {[%emt 0:00:03]} h6 {[%emt 0:00:48]} 8. Bd3 {[%emt 0:00:04]} Bxd3 {[%emt 0:00:37]} 9. Qxd3 {[%emt 0:00:14]} Bd6 {[%emt 0:00:29]} 10. Nge2 {[%emt 0:00:26]} Bxf4 {[%emt 0:12:53]} 11. Nxf4 {[%emt 0:00:13]} Nbd7 {[%emt 0:00:14]} 12. O-O-O {[%emt 0:01:03]} Qe7 {[%emt 0:19:09]} 13. g5 {[%emt 0:07:36]} Ng8 {[%emt 0:01:05]} (13... Nh7 $1 $14 {is more appropriate.}) 14. g6 {[%emt 0:03:37]} Qf6 {[%emt 0:07:32]} 15. gxf7+ {[%emt 0:01:58]} Kxf7 {[%emt 0:03:56]} 16. Rdg1 {[%emt 0:00:47]} Qf5 $2 {[%emt 0:05:29]} (16... Ne7 $16 {was worth a try.} 17. Nce2 (17. Nh5 Qf5 $14) 17... Rhg8) 17. Qd2 {[%emt 0:01:47]} ({But not} 17. Ng6 Ne7 $18) 17... Ne7 {[%emt 0:03:30]} 18. e4 {[%emt 0:02:04]} Qh7 {[%emt 0:00:44]} 19. h5 {[%emt 0:11:34]} Nf8 {[%emt 0:04:49]} 20. Rg4 {[%emt 0:05:22]} g5 {[%emt 0:04:34]} 21. hxg6+ {[%emt 0:12:32]} Nfxg6 {[%emt 0:00:49]} 22. Rhg1 {[%emt 0:02:29]} Rhg8 {[%emt 0:02:01]} 23. exd5 {[%emt 0:03:58]} exd5 {[%emt 0:06:34]} 24. Nce2 {[%emt 0:09:22]} Nf8 {[%emt 0:01:11]} 25. Nh5 {[%emt 0:13:28]} Ne6 {[%emt 0:02:40]} 26. Nef4 {[%emt 0:00:13]} Rxg4 $18 {[%emt 0:02:07]} 27. Rxg4 {[%emt 0:00:17]} Ng5 {[%emt 0:02:58]} 28. Nd3 {[%emt 0:00:14]} Rf8 {[%emt 0:06:17]} 29. Qf4+ {[%emt 0:04:51]} Qf5 {[%emt 0:01:44]} 30. Ne5+ {[%emt 0:00:22]} Kg8 {[%emt 0:00:32]} 31. Qxf5 {[%emt 0:01:28]} Nxf5 {[%emt 0:01:18]} 32. f4 {[%emt 0:02:38]} 1-0

[Event "LEM Niedersachsen-A-Open 2025"]
[Site "Verden"]
[Date "2025.01.04"]
[Round "5.13"]
[White "Thieu, Nguyen Gia Bao"]
[Black "Boerma, Daniel"]
[Result "1/2-1/2"]
[ECO "C12"]
[WhiteElo "1898"]
[BlackElo "1958"]
[Annotator "RC"]
[PlyCount "58"]
[EventDate "2024.12.27"]
[EventType "swiss"]
[EventCountry "GER"]
[SourceTitle "playchess.com"]
[Source "ChessBase"]
[SourceQuality "1"]
[TimeControl "40/5400+30:1800+30"]

1. e4 {[%emt 0:00:03]} e6 {[%emt 0:00:05]} 2. d4 {[%emt 0:00:08]} d5 {[%emt 0:00:05]} 3. Nc3 {[%emt 0:00:04]} Nf6 {[%emt 0:00:18]} 4. Bg5 {[%emt 0:00:08]} Bb4 {[%emt 0:00:16]} 5. e5 {[%emt 0:00:08]} h6 {[%emt 0:00:09]} 6. Bc1 {[%emt 0:00:05]} Ne4 {[%emt 0:00:21]} 7. Qg4 {[%emt 0:00:05]} Kf8 {[%emt 0:00:28]} 8. Nge2 {[%emt 0:07:31]} c5 {[%emt 0:00:30]} 9. a3 {[%emt 0:00:01]} Bxc3+ {[%emt 0:00:35]} 10. Nxc3 {[%emt 0:04:50]} Nxc3 {[%emt 0:01:15]} 11. bxc3 {[%emt 0:00:09]} Nc6 {[%emt 0:00:15]} 12. Bd3 {[%emt 0:02:17]} c4 {[%emt 0:00:54]} 13. Be2 {[%emt 0:00:09]} Bd7 {[%emt 0:03:07]} 14. O-O {[%emt 0:00:56]} Ne7 {[%emt 0:02:10]} 15. f4 {[%emt 0:06:27]} h5 {[%emt 0:00:50]} 16. Qh3 {[%emt 0:03:27]} Kg8 {[%emt 0:00:40]} 17. Qf3 {[%emt 0:08:00]} b5 {[%emt 0:01:19]} 18. a4 {[%emt 0:04:53]} bxa4 {[%emt 0:00:48]} 19. Ba3 {[%emt 0:00:21]} Rb8 {[%emt 0:01:38]} 20. Rfb1 {[%emt 0:00:51]} Nf5 {[%emt 0:01:27]} 21. g3 {[%emt 0:01:37]} g6 {[%emt 0:00:20]} 22. Bf1 {[%emt 0:00:30]} Kg7 {[%emt 0:00:23]} 23. Bh3 {[%emt 0:00:29]} Nh6 {[%emt 0:00:38]} 24. Bd6 {[%emt 0:03:29]} Rxb1+ {[%emt 0:04:12]} 25. Rxb1 {[%emt 0:03:24]} Qa5 {[%emt 0:00:48]} 26. Bb4 {[%emt 0:05:31]} Qc7 {[%emt 0:07:45]} 27. Bd6 {[%emt 0:01:22]} Qa5 {[%emt 0:00:09]} 28. Bb4 {[%emt 0:00:05]} Qc7 {[%emt 0:00:07]} 29. Bd6 {[%emt 0:01:14]} Qa5 {[%emt 0:00:05]} 1/2-1/2

[Event "LEM Niedersachsen-A-Open 2025"]
[Site "Verden"]
[Date "2025.01.04"]
[Round "5.14"]
[White "Belakhin, Alexander"]
[Black "Zweigait, Leon"]
[Result "1/2-1/2"]
[ECO "E44"]
[WhiteElo "1945"]
[BlackElo "1865"]
[Annotator "NA RC"]
[PlyCount "124"]
[EventDate "2024.12.27"]
[EventType "swiss"]
[EventCountry "GER"]
[SourceTitle "playchess.com"]
[Source "ChessBase"]
[SourceQuality "1"]
[TimeControl "40/5400+30:1800+30"]

1. d4 {[%emt 0:00:03]} Nf6 {[%emt 0:00:04]} 2. c4 {[%emt 0:00:09]} e6 {[%emt 0:00:05]} 3. Nc3 {[%emt 0:00:10]} Bb4 {[%emt 0:00:23]} 4. e3 {[%emt 0:02:11]} b6 {[%emt 0:00:11]} 5. Nge2 {[%emt 0:00:44]} Bb7 {[%emt 0:00:24]} 6. a3 {[%emt 0:00:22]} Be7 {[%emt 0:03:59]} 7. Ng3 {[%emt 0:01:41]} h5 {[%emt 0:01:32] E44: Nimzo-Indian: Rubinstein: 4...b6 5 Ne2.} 8. f3 {[%emt 0:06:34]} d5 {[%emt 0:08:24]} 9. cxd5 {[%emt 0:01:56]} Nxd5 {[%emt 0:00:15]} 10. Nxd5 {[%emt 0:12:16]} Qxd5 {[%emt 0:00:42]} 11. Bd3 {[%emt 0:02:29]} c5 {[%emt 0:00:34]} 12. dxc5 {[%emt 0:05:06]} Qxc5 {[%emt 0:03:05]} 13. Bd2 {[%emt 0:07:21]} Nd7 {[%emt 0:05:09]} 14. Ne4 {[%emt 0:05:36]} Qd5 {[%emt 0:01:13]} 15. Qe2 {[%emt 0:04:52]} Ne5 {[%emt 0:02:35]} 16. Bb5+ {[%emt 0:00:26]} Bc6 {[%emt 0:00:22]} 17. Bxc6+ {[%emt 0:01:43]} Nxc6 {[%emt 0:00:09]} 18. Bc3 {[%emt 0:01:06]} O-O-O {[%emt 0:01:40]} 19. O-O {[%emt 0:07:16]} e5 {[%emt 0:08:25]} 20. Rfd1 {[%emt 0:03:14]} Qe6 {[%emt 0:00:22]} 21. Rdc1 {[%emt 0:01:55]} Kb7 {[%emt 0:01:04]} 22. a4 {[%emt 0:02:18]} (22. b4 $142) 22... a5 {[%emt 0:01:55]} 23. Rc2 {[%emt 0:04:38]} f5 {[%emt 0:02:01]} 24. Nf2 {[%emt 0:01:22]} Bc5 {[%emt 0:04:11]} 25. Nd3 {[%emt 0:01:25]} Rd5 {[%emt 0:00:14]} 26. Nxc5+ {[%emt 0:02:52]} Rxc5 {[%emt 0:01:36]} 27. Rd2 {[%emt 0:00:53]} Ne7 {[%emt 0:04:00]} 28. e4 {[%emt 0:02:35]} Rhc8 {[%emt 0:01:27]} 29. Rad1 {[%emt 0:02:56]} Nc6 {[%emt 0:09:53]} 30. Rd5 {[%emt 0:03:48]} Nb4 {[%emt 0:01:53]} 31. Rd7+ {[%emt 0:02:28]} R8c7 {[%emt 0:00:40]} 32. Rxc7+ {[%emt 0:02:13]} Kxc7 {[%emt 0:00:13]} 33. Qd2 {[%emt 0:01:17]} Nc6 {[%emt 0:03:12]} 34. Qg5 {[%emt 0:00:16]} g6 {[%emt 0:01:40]} 35. Qh6 {[%emt 0:02:39]} Qf7 {[%emt 0:02:05]} 36. Qd2 {[%emt 0:01:18]} Qe6 {[%emt 0:02:17]} 37. exf5 {[%emt 0:03:11]} gxf5 {[%emt 0:00:20]} 38. Qg5 {[%emt 0:00:27]} Qf7 {[%emt 0:04:59]} 39. Qh6 {[%emt 0:01:24]} Nd4 {[%emt 0:15:32]} 40. Bxd4 {[%emt 0:00:52]} exd4 {[%emt 0:00:39]} 41. Qf4+ {[%emt 0:31:58]} Kb7 {[%emt 0:33:14]} 42. Qxd4 {[%emt 0:02:33]} Qc4 {[%emt 0:03:37]} 43. Qxc4 {[%emt 0:00:00]} Rxc4 {[%emt 0:00:00]} 44. b3 {[%emt 0:00:00]} Rc3 {[%emt 0:00:00]} 45. Rb1 {[%emt 0:00:00]} Kc6 {[%emt 0:00:00]} 46. b4 {[%emt 0:00:00]} Rc4 {[%emt 0:00:00]} 47. bxa5 {[%emt 0:00:00]} bxa5 {[%emt 0:00:00]} 48. Rb5 {[%emt 0:00:00]} Rxa4 {[%emt 0:00:00]} 49. Rxf5 {[%emt 0:00:00]} h4 {[%emt 0:00:00]} (49... Ra1+ $1 $11 50. Kf2 h4) 50. g4 {[%emt 0:00:00]} hxg3 {[%emt 0:00:00]} 51. hxg3 {[%emt 0:00:00]} Ra1+ {[%emt 0:00:00] [#]} (51... Kb6 $1 $11 {is more appropriate.}) 52. Kf2 $1 {[%emt 0:00:00]} Kd6 {[%emt 0:00:00]} (52... Ra2+ $16 53. Ke3 a4) 53. Ke2 $16 {[%emt 0:00:00]} (53. g4 $18) 53... a4 {[%emt 0:00:00]} 54. Ra5 {[%emt 0:00:00]} (54. Kf2 $1 $14) 54... a3 $2 {[%emt 0:00:00] [#]} (54... Kc6 $11 {and Black is okay.}) 55. Kd2 $2 {[%emt 0:00:00]} (55. Kf2 $1 $18) 55... Rg1 {[%emt 0:00:00]} 56. Rxa3 {[%emt 0:00:00]} Rxg3 {[%emt 0:00:00]} 57. Ke3 {[%emt 0:00:00]} Rg1 {[%emt 0:00:00]} 58. Ra2 {[%emt 0:01:58]} Ke5 {[%emt 0:00:00]} 59. f4+ {[%emt 0:01:29]} Kf6 {[%emt 0:00:00]} 60. Ra6+ {[%emt 0:01:32]} Kf5 {[%emt 0:00:00]} 61. Ra5+ {[%emt 0:00:57]} Kf6 {[%emt 0:00:00]} 62. Ra2 {[%emt 0:02:51]} Kf5 {[%emt 0:15:15]} 1/2-1/2